fUST/lending_fUST_20251121
["ID","MTS","AMOUNT","RATE_DAILY","PERIOD"]
[394548139,1763693871893,531.4,0.00012132,30]
[394548140,1763693872565,597.83,0.00012385,30]
[394548141,1763693872844,563.5,0.00012638,30]
[394548144,1763693880525,555.0,0.00032876,120]
[394548175,1763693919904,555.0,0.00032876,120]
[394548176,1763693945605,150.0,0.00011186,30]
[394548178,1763693946039,150.0,0.00011459,30]
[394548180,1763693946439,150.0,0.00011732,30]
[394548181,1763693946866,185.99,0.00012005,30]
[394548182,1763693947293,232.49,0.00012278,30]
[394548183,1763693947720,278.99,0.00012551,30]
[394548184,1763693948130,325.48,0.00012823,30]
[394548185,1763693948524,371.98,0.00013096,30]
[394548187,1763693948926,418.48,0.00013369,30]
[394548189,1763693949344,252.45,0.00013642,30]
[394548210,1763693961241,297.860603,0.00032876,120]
[394548216,1763693971343,523.26,0.00038445,20]
[394548240,1763694020972,150.0,0.00011164,30]
[394548241,1763694021424,150.0,0.00011436,30]
[394548242,1763694021816,150.0,0.00011708,30]
[394548243,1763694022250,150.0,0.00011981,30]
[394548244,1763694022643,163.87,0.00012253,30]
[394548245,1763694023039,196.65,0.00012525,30]
[394548247,1763694023613,229.42,0.00012797,30]
[394548248,1763694024616,262.2,0.0001307,30]
[394548249,1763694024906,276.94,0.00013342,30]
[394548286,1763694097862,150.0,0.00011168,30]
[394548287,1763694098263,150.0,0.00011441,30]
[394548288,1763694098706,150.0,0.00011713,30]
[394548289,1763694099111,150.0,0.00011985,30]
[394548290,1763694099509,150.0,0.00012258,30]
[394548291,1763694099906,150.0,0.0001253,30]
[394548292,1763694100346,163.4,0.00012803,30]
[394548293,1763694117470,-150.0,0.00013699,7]
[394548314,1763694145613,302.0,0.00032877,120]
[394548315,1763694173398,150.0,0.00011114,30]
[394548316,1763694174083,150.0,0.00011385,30]
[394548317,1763694174232,150.0,0.00011656,30]
[394548318,1763694174655,150.0,0.00011927,30]
[394548319,1763694175065,150.0,0.00012198,30]
[394548339,1763694202310,151.0,0.00038445,50]
[394548341,1763694202665,151.649556,0.00038445,50]
[394548343,1763694246279,150.0,0.00011289,30]
[394548344,1763694246689,150.0,0.00011564,30]
[394548346,1763694247108,150.0,0.0001184,30]
[394548375,1763694317216,150.0,0.0001265,30]
[394548400,1763694380127,-202.0,0.00013699,7]
[394548404,1763694385627,150.0,0.00011103,30]
[394548423,1763694398509,-300.0,0.00013699,7]
[394548432,1763694453304,1724.684035,0.00030137,120]
[394548433,1763694454129,-1092.08496321,6.725e-05,2]
[394548434,1763694454160,-251.18826409,6.828e-05,2]
[394548435,1763694454183,-1092.08496321,7.366e-05,2]
[394548436,1763694454203,-1092.08496321,8.007e-05,2]
[394548437,1763694454227,-375.34214213,8.07e-05,2]
[394548438,1763694454250,-1092.08496321,8.648e-05,2]
[394548439,1763694454274,-229.24430469,8.765e-05,2]
[394548440,1763694454296,-296.40215162,8.828e-05,2]
[394548441,1763694454317,-300.0,8.867e-05,2]
[394548442,1763694454339,-500.0,8.868e-05,2]
[394548443,1763694454367,-500.0,8.868e-05,2]
[394548444,1763694454393,-337.1628832,8.868e-05,2]
[394548576,1763694632014,-284.91277725,8.507e-05,2]
[394548577,1763694632024,-59.52922275,8.767e-05,2]
[394548581,1763694632068,-759.16573692,8.767e-05,2]
[394548613,1763694632398,-1547.4223131,8.767e-05,2]
[394548615,1763694632409,-300.0,8.866e-05,2]
[394548617,1763694632419,-300.0,8.866e-05,2]
[394548619,1763694632428,-1200.0,8.866e-05,2]
[394548621,1763694632438,-1200.0,8.867e-05,2]
[394548623,1763694632447,-501.75383152,8.873e-05,2]
[394548625,1763694632457,-502.22683642,8.873e-05,2]
[394548627,1763694632468,-356.71092588,8.873e-05,2]
[394548629,1763694632490,-500.0,8.873e-05,2]
[394548632,1763694632509,-500.0,8.873e-05,2]
[394548634,1763694632519,-638.99722714,8.873e-05,2]
[394548636,1763694632529,-500.0,8.873e-05,2]
[394548638,1763694632538,-453.46953034,8.899e-05,2]
[394548640,1763694632549,-327.115,8.899e-05,2]
[394548641,1763694632558,-45800.88530112,8.9e-05,2]
[394548644,1763694632570,-146139.10049309,8.9e-05,2]
[394548703,1763694640418,-284.27918726,6.725e-05,2]
[394548704,1763694640427,-178.4622675,8.507e-05,2]
[394548705,1763694640436,-500.0,8.866e-05,2]
[394548706,1763694640446,-500.0,8.866e-05,2]
[394548707,1763694640456,-500.0,8.866e-05,2]
[394548708,1763694640465,-500.0,8.866e-05,2]
[394548709,1763694640475,-500.0,8.866e-05,2]
[394548710,1763694640485,-36.88684865,8.866e-05,2]
[394548770,1763694707458,151.0,0.00038444,50]
[394548771,1763694707779,151.0,0.00038444,50]
[394548772,1763694708065,154.844362,0.00038444,50]
[394548842,1763694811563,150.0,0.00012884,30]
[394548843,1763694811965,150.0,0.00013198,30]
[394548844,1763694812363,150.0,0.00013513,30]
[394548845,1763694816108,166.81,0.00013827,30]
[394548846,1763694816921,208.51,0.00014141,30]
[394548847,1763694817127,250.22,0.00014455,30]
[394548848,1763694817408,291.92,0.0001477,30]
[394548849,1763694817796,333.62,0.00015084,30]
[394548877,1763694911397,188.0,0.00032512,120]
[394548883,1763694933494,151.0,0.00038452,50]
[394548901,1763695035423,150.0,0.00013635,30]
[394548902,1763695035859,150.0,0.00013968,30]
[394548903,1763695036246,150.0,0.000143,30]
[394548904,1763695036650,150.0,0.00014633,30]
[394548905,1763695037063,162.12,0.00014966,30]
[394548917,1763695116588,150.0,0.0001112,30]
[394548918,1763695117000,150.0,0.00011392,30]
[394548919,1763695117808,150.0,0.00011663,30]
[394548920,1763695117909,150.0,0.00011934,30]
[394548921,1763695118217,150.0,0.00012205,30]
[394548922,1763695118629,169.6,0.00012476,30]
[394548923,1763695119031,197.87,0.00012748,30]
[394548924,1763695119549,226.14,0.00013019,30]
[394548935,1763695179767,339.0,0.00028082,120]
[394548936,1763695190968,150.0,0.00012678,30]
[394548937,1763695191370,150.0,0.00012987,30]
[394548938,1763695191769,150.0,0.00013296,30]
[394548939,1763695192182,150.0,0.00013605,30]
[394548940,1763695192721,150.0,0.00013914,30]
[394548941,1763695193134,150.0,0.00014224,30]
[394548967,1763695228545,173.04031349,0.00030136,120]
[394548969,1763695263677,150.0,0.00010645,30]
[394548970,1763695264231,150.0,0.00010905,30]
[394548971,1763695264572,150.0,0.00011164,30]
[394548972,1763695264997,150.0,0.00011424,30]
[394549023,1763695342239,150.0,0.00011899,30]
[394549024,1763695342790,150.0,0.0001219,30]
[394549026,1763695360895,2343.5210494,0.00038475,20]
[394549043,1763695411297,150.0,0.00010628,30]
[394549065,1763695480167,150.0,0.00012684,30]
[394549113,1763695538578,-500.0,0.00019178,30]
[394549114,1763695538622,-500.0,0.00019178,30]
[394549115,1763695538667,-500.0,0.00019178,30]
[394549116,1763695538710,-500.0,0.00019178,30]
[394549117,1763695538756,-500.0,0.00019178,30]
[394549118,1763695538802,-500.0,0.00019178,30]
[394549119,1763695538847,-500.0,0.00019178,30]
[394549120,1763695538891,-500.0,0.00019178,30]
[394549121,1763695538934,-500.0,0.00019178,30]
[394549122,1763695538976,-500.0,0.00019178,30]
[394549123,1763695539020,-500.0,0.00019178,30]
[394549124,1763695539062,-500.0,0.00019178,30]
[394549125,1763695539122,-500.0,0.00019178,30]
[394549126,1763695539166,-500.0,0.00019178,30]
[394549127,1763695539208,-500.0,0.00019178,30]
[394549128,1763695539251,-500.0,0.00019178,30]
[394549129,1763695539295,-500.0,0.00019178,30]
[394549130,1763695539336,-500.0,0.00019178,30]
[394549131,1763695539376,-500.0,0.00019178,30]
[394549132,1763695539417,-500.0,0.00019178,30]
[394549133,1763695539459,-403.19229541,0.00019178,30]
[394549134,1763695539503,-353.13058887,0.000192,30]
[394549135,1763695539546,-1234.05212477,0.0002,30]
[394549136,1763695539590,-251.81800146,0.0002,21]
[394549138,1763695539735,-1219.11686918,0.0002,20]
[394549139,1763695539776,-288.55971267,0.0002,14]
[394549140,1763695539818,-19999.999999,0.000205,10]
[394549141,1763695539860,-647.474322,0.000205,10]
[394549142,1763695539900,-160.0,0.0002093,10]
[394549143,1763695539943,-1548.51667691,0.00021,10]
[394549144,1763695539983,-353.13058887,0.00021,10]
[394549145,1763695540022,-160.0,0.00021099,11]
[394549146,1763695540060,-160.0,0.00021267,12]
[394549147,1763695540102,-169.440286,0.00021351,10]
[394549148,1763695540144,-160.0,0.00021436,13]
[394549149,1763695540184,-160.0,0.00021605,14]
[394549150,1763695540225,-160.0,0.00021774,15]
[394549151,1763695540269,-160.0,0.00021943,16]
[394549153,1763695540309,-4298.25,0.00022,14]
[394549154,1763695540352,-647.474322,0.00022047,10]
[394549155,1763695540392,-160.0,0.00022112,17]
[394549156,1763695540435,-160.0,0.00022281,18]
[394549157,1763695540477,-160.0,0.00022449,19]
[394549158,1763695540522,-227.53588212,0.00022574,17]
[394549159,1763695540567,-160.0,0.00022618,20]
[394549160,1763695540611,-349.39259353,0.00022671,17]
[394549162,1763695540671,-4298.25,0.000227,14]
[394549163,1763695540739,-198.58375274,0.00022704,30]
[394549164,1763695540805,-227.53588212,0.00022768,32]
[394549165,1763695540864,-349.39259353,0.00022768,25]
[394549166,1763695540927,-160.0,0.00022787,21]
[394549167,1763695540983,-349.39259353,0.00022866,32]
[394549168,1763695541040,-160.0,0.00022956,22]
[394549169,1763695541099,-227.53588212,0.00022961,48]
[394549170,1763695541153,-349.39259353,0.00022963,40]
[394549171,1763695541208,-271.55253996,0.00022996,30]
[394549172,1763695541262,-2000.0,0.00023,14]
[394549173,1763695541320,-647.474322,0.00023,50]
[394549174,1763695541376,-349.39259353,0.0002306,48]
[394549175,1763695541434,-160.0,0.00023125,23]
[394549176,1763695541490,-227.53588212,0.00023155,63]
[394549177,1763695541548,-349.39259353,0.00023158,56]
[394549178,1763695541605,-154.72066909,0.00023158,56]
[394549179,1763695541664,-349.39259353,0.00023255,63]
[394549180,1763695541725,-160.0,0.00023294,24]
[394549181,1763695541783,-227.53588212,0.00023349,79]
[394549182,1763695541840,-349.39259353,0.00023352,71]
[394549183,1763695541893,-4298.25,0.000234,14]
[394549184,1763695541948,-291.69857279,0.00023406,30]
[394549186,1763695542149,-291.69857279,0.00023406,30]
[394549187,1763695542193,-349.39259353,0.00023449,79]
[394549188,1763695542234,-160.0,0.00023463,25]
[394549189,1763695542274,-227.53588212,0.00023543,94]
[394549190,1763695542314,-349.39259353,0.00023547,86]
[394549191,1763695542356,-647.474322,0.00023594,10]
[394549192,1763695542398,-157.770035,0.00023594,10]
[394549193,1763695542440,-160.0,0.00023632,26]
[394549194,1763695542483,-349.39259353,0.00023644,94]
[394549195,1763695542524,-3273.31984958,0.000237,30]
[394549196,1763695542564,-227.53588212,0.00023737,110]
[394549197,1763695542605,-349.39259353,0.00023741,102]
[394549198,1763695542648,-160.0,0.000238,27]
[394549199,1763695542695,-174.69629674,0.00023839,110]
[394549200,1763695542737,-154.72066909,0.00023839,110]
[394549201,1763695542778,-160.0,0.00023969,28]
[394549202,1763695542816,-5151.32644912,0.00024,60]
[394549203,1763695542858,-647.474322,0.00024,60]
[394549204,1763695542896,-4298.25,0.000241,14]
[394549205,1763695542935,-647.474322,0.000241,15]
[394549206,1763695542977,-160.0,0.00024138,29]
[394549207,1763695543023,-160.0,0.00024307,30]
[394549208,1763695543066,-169.440286,0.00024434,15]
[394549209,1763695543113,-169.440286,0.00024674,50]
[394549210,1763695543155,-4298.25,0.000249,14]
[394549211,1763695543197,-647.474322,0.00024961,50]
[394549213,1763695543235,-835.53244988,0.00025,30]
[394549214,1763695543275,-81254.12986275,0.00025,15]
[394549215,1763695543314,-300.0,0.00025,30]
[394549216,1763695543356,-2000.0,0.00025,14]
[394549217,1763695543399,-2000.0,0.00025,14]
[394549218,1763695543445,-2000.0,0.00025,14]
[394549219,1763695543492,-1174.5,0.00025,14]
[394549220,1763695543538,-647.474322,0.00025141,10]
[394549221,1763695543581,-157.770035,0.00025141,10]
[394549222,1763695543623,-4298.25,0.000257,14]
[394549223,1763695543671,-647.474322,0.00025711,15]
[394549224,1763695543723,-647.474322,0.00026225,60]
[394549225,1763695543771,-169.440286,0.0002632,60]
[394549226,1763695543815,-647.474322,0.00026688,10]
[394549227,1763695543857,-157.770035,0.00026688,10]
[394549228,1763695543901,-647.474322,0.00026921,50]
[394549229,1763695543944,-157.770035,0.00026921,50]
[394549231,1763695543982,-600.0,0.00027,14]
[394549232,1763695544027,-647.474322,0.00027322,15]
[394549233,1763695544068,-157.770035,0.00027322,15]
[394549234,1763695544115,-20000.0,0.00028,30]
[394549235,1763695544164,-4298.25,0.00028,14]
[394549236,1763695544206,-395.9700873,0.00028052,30]
[394549237,1763695544248,-395.9700873,0.00028052,30]
[394549238,1763695544288,-395.9700873,0.00028052,30]
[394549239,1763695544329,-382.1939253,0.00028052,30]
[394549240,1763695544371,-647.474322,0.0002845,60]
[394549241,1763695544412,-157.770035,0.0002845,60]
[394549242,1763695544555,-258.53025843,0.00028712,14]
[394549243,1763695544598,-198.585981,0.00028767,60]
[394549244,1763695544645,-647.474322,0.00028882,50]
[394549245,1763695544692,-157.770035,0.00028882,50]
[394549246,1763695544741,-647.474322,0.00028932,15]
[394549247,1763695544787,-157.770035,0.00028932,15]
[394549248,1763695544841,-124403.41487612,0.00029,10]
[394549249,1763695544892,-194.0,0.0002926,14]
[394549250,1763695544935,-182.0,0.00029808,14]
[394549251,1763695544980,-853491.92097353,0.0003,30]
[394549252,1763695545026,-255611.90398048,0.0003,30]
[394549253,1763695545069,-410.00833571,0.0003,10]
[394549254,1763695545114,-987.71060589,0.0003,10]
[394549255,1763695545158,-203.87,0.0003,21]
[394549256,1763695545200,-1200.0,0.0003,10]
[394549257,1763695545243,-138404.46255651,0.0003,30]
[394549258,1763695545285,-353.13058887,0.0003,30]
[394549259,1763695545327,-353.13058887,0.0003,10]
[394549260,1763695545366,-1076.28,0.0003,30]
[394549261,1763695545404,-1000.0,0.00030136,14]
[394549262,1763695545443,-313.4,0.00030136,25]
[394549263,1763695545482,-185.06692353,0.00030136,25]
[394549264,1763695545522,-1000.0,0.00030136,14]
[394549265,1763695545561,-151.0,0.00030136,14]
[394549266,1763695545600,-1076.28,0.0003018,30]
[394549267,1763695545645,-170.0,0.00030356,39]
[394549268,1763695545689,-1076.28,0.0003036,30]
[394549269,1763695545730,-647.474322,0.00030543,15]
[394549270,1763695545770,-157.770035,0.00030543,15]
[394549272,1763695545819,-647.474322,0.00030675,60]
[394549273,1763695545870,-157.770035,0.00030675,60]
[394549275,1763695545910,-647.474322,0.00030842,50]
[394549276,1763695545954,-157.770035,0.00030842,50]
[394549277,1763695545995,-353.13058887,0.000309,30]
[394549278,1763695546037,-353.13058887,0.000309,10]
[394549279,1763695546083,-308.0,0.00030904,14]
[394549280,1763695546127,-151.0,0.00031327,14]
[394549281,1763695546170,-278.9745553,0.00031585,30]
[394549282,1763695546212,-293.8660516,0.00031585,30]
[394549283,1763695546254,-153.0,0.00031585,30]
[394549284,1763695546295,-153.0,0.00031585,30]
[394549285,1763695546335,-1532.42377056,0.00032,30]
[394549286,1763695546374,-713.0,0.00032,30]
[394549287,1763695546413,-270.0,0.00032,14]
[394549288,1763695546452,-1000.0,0.00032215,14]
[394549289,1763695546493,-151.0,0.00032519,14]
[394549290,1763695546541,-17804.01,0.00032877,10]
[394549291,1763695546582,-14836.67,0.00032877,10]
[394549292,1763695546621,-917.03661271,0.00032877,120]
[394549293,1763695546664,-647.474322,0.000329,60]
[394549294,1763695546707,-157.770035,0.000329,60]
[394549295,1763695546747,-339.0,0.00032931,120]
[394549296,1763695546786,-380.0,0.00033,120]
[394549297,1763695546824,-500.0,0.00033,120]
[394549298,1763695546865,-236.0,0.00033096,58]
[394549299,1763695546905,-164.0,0.00033197,120]
[394549300,1763695546944,-1567.0,0.0003336,120]
[394549301,1763695546981,-172.0,0.00033522,120]
[394549302,1763695547020,-239.0,0.00033615,120]
[394549303,1763695547059,-162.0,0.00033693,120]
[394549304,1763695547097,-260.0,0.00033699,120]
[394549305,1763695547135,-151.0,0.0003371,14]
[394549306,1763695547288,-520.0,0.00033816,120]
[394549307,1763695547339,-784.0,0.00033823,120]
[394549308,1763695547379,-322.00313349,0.0003399,60]
[394549309,1763695547417,-500.0,0.00034,120]
[394549310,1763695547457,-4321.11,0.00034,14]
[394549311,1763695547496,-48000.0,0.000341,30]
[394549312,1763695547534,-188.0,0.00034138,120]
[394549313,1763695547571,-153.0,0.00034186,30]
[394549314,1763695547607,-153.0,0.00034186,30]
[394549315,1763695547645,-153.0,0.00034186,30]
[394549316,1763695547681,-207.0,0.00034192,59]
[394549317,1763695547717,-157.26250884,0.00034246,120]
[394549318,1763695547752,-32373.2395754,0.00034247,30]
[394549319,1763695547788,-1000.0,0.00034294,14]
[394549320,1763695547825,-339.0,0.00034577,120]
[394549321,1763695547860,-395.9700873,0.00034667,30]
[394549322,1763695547895,-395.9700873,0.00034667,30]
[394549323,1763695547932,-398.123348,0.00034667,30]
[394549324,1763695547970,-845.63232432,0.00034875,120]
[394549325,1763695548006,-151.0,0.00034901,14]
[394549326,1763695548043,-7737.95712517,0.00035,14]
[394549327,1763695548076,-1000.0,0.00035,120]
[394549328,1763695548130,-263.64729,0.00035,120]
[394549329,1763695548170,-1000.0,0.00035,14]
[394549330,1763695548210,-872.41449772,0.00035,120]
[394549331,1763695548249,-160.0,0.00035,14]
[394549332,1763695548288,-151.0,0.00035,120]
[394549333,1763695548327,-4298.25,0.00035,30]
[394549334,1763695548366,-500.0,0.00035007,30]
[394549335,1763695548407,-500.0,0.00035008,30]
[394549336,1763695548449,-500.0,0.00035012,30]
[394549337,1763695548491,-1567.0,0.00035028,120]
[394549338,1763695548530,-500.0,0.00035044,30]
[394549339,1763695548572,-241.0,0.00035074,120]
[394549340,1763695548614,-500.0,0.00035093,30]
[394549341,1763695548655,-500.0,0.00035122,30]
[394549342,1763695548693,-1724.684035,0.0003516,120]
[394549343,1763695548733,-500.0,0.00035163,30]
[394549344,1763695548772,-500.0,0.00035176,30]
[394549345,1763695548809,-500.0,0.00035181,30]
[394549346,1763695548847,-172.0,0.00035198,120]
[394549347,1763695548884,-500.0,0.0003528,30]
[394549348,1763695548921,-182.0,0.00035288,59]
[394549349,1763695548960,-239.0,0.00035295,120]
[394549350,1763695549001,-837.00259935,0.00035355,30]
[394549351,1763695549042,-500.0,0.00035364,30]
[394549352,1763695549080,-500.0,0.00035371,30]
[394549353,1763695549115,-500.0,0.00035372,30]
[394549354,1763695549152,-162.0,0.00035377,120]
[394549355,1763695549185,-500.0,0.00035378,30]
[394549356,1763695549220,-500.0,0.00035384,30]
[394549357,1763695549256,-260.0,0.00035384,120]
[394549359,1763695549294,-500.0,0.00035454,30]
[394549360,1763695549331,-1279.972188,0.00035458,30]
[394549361,1763695549367,-500.0,0.00035485,30]
[394549362,1763695549405,-520.0,0.00035507,120]
[394549363,1763695549441,-500.0,0.00035512,30]
[394549364,1763695549478,-784.0,0.00035514,120]
[394549365,1763695549514,-500.0,0.000356,30]
[394549366,1763695549556,-500.0,0.00035623,30]
[394549367,1763695549594,-500.0,0.00035651,30]
[394549368,1763695549636,-535.82176782,0.00035681,30]
[394549370,1763695549796,-545.79475885,0.00035693,30]
[394549371,1763695549839,-689.57049505,0.00035708,30]
[394549372,1763695549888,-165.06,0.00035715,60]
[394549373,1763695549937,-157.36,0.00035784,60]
[394549374,1763695549976,-925.24959235,0.00035813,30]
[394549375,1763695550019,-165.06,0.00035815,60]
[394549376,1763695550063,-157.35,0.0003582,60]
[394549377,1763695550104,-188.0,0.00035845,120]
[394549378,1763695550147,-157.36,0.00035884,60]
[394549379,1763695550186,-235.0,0.0003589,120]
[394549380,1763695550226,-843.80442539,0.000359,15]
[394549381,1763695550270,-165.06,0.00035915,60]
[394549382,1763695550321,-157.35,0.0003592,60]
[394549383,1763695550374,-317.0,0.00035975,120]
[394549384,1763695550416,-157.36,0.00035984,60]
[394549385,1763695550454,-6500.0,0.00036,120]
[394549386,1763695550495,-47160.89576343,0.00036,30]
[394549387,1763695550536,-1000.0,0.00036,120]
[394549388,1763695550579,-5058.4086527,0.00036,120]
[394549389,1763695550622,-165.06,0.00036015,60]
[394549390,1763695550662,-157.35,0.0003602,60]
[394549391,1763695550705,-157.36,0.00036084,60]
[394549392,1763695550747,-151.0,0.00036092,14]
[394549393,1763695550788,-165.06,0.00036115,60]
[394549394,1763695550829,-157.35,0.0003612,60]
[394549395,1763695550868,-157.36,0.00036184,60]
[394549396,1763695550905,-151.0,0.000362,120]
[394549397,1763695550941,-1000.0,0.000362,10]
[394549398,1763695550980,-165.096037,0.00036215,60]
[394549399,1763695551019,-157.4,0.0003622,60]
[394549401,1763695551060,-157.36,0.00036284,60]
[394549402,1763695551100,-339.0,0.00036306,120]
[394549403,1763695551138,-205.0,0.00036314,120]
[394549404,1763695551177,-176.0,0.00036333,120]
[394549405,1763695551214,-1000.0,0.00036373,14]
[394549406,1763695551252,-159.0,0.00036384,88]
[394549407,1763695551291,-157.36,0.00036384,60]
[394549408,1763695551327,-151.92,0.00036404,60]
[394549409,1763695551366,-179.73040439,0.00036434,16]
[394549410,1763695551407,-157.36,0.00036484,60]
[394549411,1763695551446,-151.92,0.00036504,60]
[394549412,1763695551488,-157.36,0.00036584,60]
[394549413,1763695551526,-151.92,0.00036604,60]
[394549414,1763695551567,-157.44706444,0.00036684,60]
[394549415,1763695551605,-151.92,0.00036704,60]
[394549416,1763695551645,-1567.0,0.00036779,120]
[394549417,1763695551685,-3472.72592729,0.00036789,60]
[394549418,1763695551721,-151.92,0.00036804,60]
[394549419,1763695551757,-888.87488636,0.00036875,120]
[394549420,1763695551791,-151.92,0.00036904,60]
[394549421,1763695551825,-172.0,0.00036958,120]
[394549422,1763695551862,-500.0,0.00036986,15]
[394549423,1763695551899,-500.0,0.00036986,15]
[394549424,1763695551936,-500.0,0.00036986,15]
[394549425,1763695551973,-500.0,0.00036986,15]
[394549426,1763695552009,-500.0,0.00036986,15]
[394549427,1763695552044,-500.0,0.00036986,15]
[394549428,1763695552081,-500.0,0.00036986,15]
[394549429,1763695552119,-500.0,0.00036986,15]
[394549430,1763695552269,-500.0,0.00036986,15]
[394549431,1763695552307,-500.0,0.00036986,15]
[394549432,1763695552342,-500.0,0.00036986,15]
[394549433,1763695552380,-300.0,0.00036986,15]
[394549434,1763695552419,-500.0,0.00036986,15]
[394549435,1763695552457,-200.0,0.00036986,15]
[394549436,1763695552493,-500.0,0.00036986,15]
[394549437,1763695552532,-500.0,0.00036986,15]
[394549438,1763695552569,-500.0,0.00036986,15]
[394549439,1763695552607,-500.0,0.00036986,15]
[394549440,1763695552647,-500.0,0.00036986,15]
[394549441,1763695552687,-500.0,0.00036986,15]
[394549442,1763695552725,-500.0,0.00036986,15]
[394549443,1763695552761,-500.0,0.00036986,15]
[394549444,1763695552810,-500.0,0.00036986,15]
[394549445,1763695552851,-500.0,0.00036986,15]
[394549446,1763695552889,-500.0,0.00036986,15]
[394549447,1763695552925,-500.0,0.00036986,15]
[394549448,1763695552963,-500.0,0.00036986,15]
[394549449,1763695553000,-500.0,0.00036986,15]
[394549450,1763695553046,-500.0,0.00036986,15]
[394549451,1763695553088,-500.0,0.00036986,15]
[394549452,1763695553130,-500.0,0.00036986,15]
[394549453,1763695553172,-500.0,0.00036986,15]
[394549454,1763695553214,-500.0,0.00036986,15]
[394549455,1763695553256,-500.0,0.00036986,15]
[394549456,1763695553297,-500.0,0.00036986,15]
[394549457,1763695553337,-500.0,0.00036986,15]
[394549458,1763695553376,-500.0,0.00036986,15]
[394549459,1763695553416,-355.77181953,0.00036986,15]
[394549460,1763695553458,-500.0,0.00036986,15]
[394549461,1763695553498,-500.0,0.00036986,15]
[394549462,1763695553542,-500.0,0.00036986,15]
[394549463,1763695553586,-500.0,0.00036986,15]
[394549464,1763695553630,-500.0,0.00036986,15]
[394549465,1763695553678,-500.0,0.00036986,15]
[394549466,1763695553725,-500.0,0.00036986,15]
[394549467,1763695553766,-500.0,0.00036986,15]
[394549468,1763695553808,-500.0,0.00036986,15]
[394549469,1763695553848,-500.0,0.00036986,15]
[394549470,1763695553887,-500.0,0.00036986,15]
[394549471,1763695553926,-500.0,0.00036986,15]
[394549472,1763695553970,-500.0,0.00036986,15]
[394549473,1763695554017,-500.0,0.00036986,15]
[394549474,1763695554066,-500.0,0.00036986,15]
[394549475,1763695554108,-500.0,0.00036986,15]
[394549476,1763695554149,-500.0,0.00036986,15]
[394549477,1763695554190,-500.0,0.00036986,15]
[394549478,1763695554232,-500.0,0.00036986,15]
[394549479,1763695554273,-500.0,0.00036986,15]
[394549480,1763695554314,-500.0,0.00036986,15]
[394549481,1763695554356,-500.0,0.00036986,15]
[394549482,1763695554395,-500.0,0.00036986,15]
[394549483,1763695554435,-500.0,0.00036986,15]
[394549484,1763695554477,-500.0,0.00036986,15]
[394549485,1763695554516,-500.0,0.00036986,15]
[394549486,1763695554555,-500.0,0.00036986,15]
[394549487,1763695554592,-500.0,0.00036986,15]
[394549488,1763695554765,-500.0,0.00036986,15]
[394549489,1763695554806,-500.0,0.00036986,15]
[394549490,1763695554846,-500.0,0.00036986,15]
[394549491,1763695554886,-500.0,0.00036986,15]